Cogmind - Beta 17.1 @@@ ROGUE MODE // 2026.09.25 @ 04:19:41 Player: Boxplot Result: Destroyed by D-53 Grenadier with Mini Grenade Launcher Performance ------------- Evolutions (1) 500 Regions Visited (4) 800 Robots Destroyed (53) 265 Value Destroyed (1069) 1069 Prototype IDs (2) 40 Alien Tech Used (0) 0 Bonus (-322) -322 TOTAL SCORE: 2352 Bonus ------- Friendly Fire -322 Cogmind --------- Core Integrity 0/400 Matter 285/300 Energy 280/280 System Corruption 0% Temperature Cool (0) Movement Rolling (100) Ox1 Location -9/Mines Parts ------- > --- POWER (1) -------- Cooled Ion Engine > --- PROPULSION (3) --- Light Treads Wheel Armored Wheel > --- UTILITY (3) ------ Cooling System Large Storage Unit Visual Processing Unit > --- WEAPON (2) ------- Light Assault Rifle Gauss Rifle > --- INVENTORY (15) --- Cooled Ion Engine Improved Deuterium Engine Light Treads Light Treads Hover Unit Gravmag System Improved Heat Sink Huge Storage Unit Improved Medium Armor Plating Hacking Suite Beamcaster Beamcaster Rocket Launcher Heavy Rocket Launcher Peak State ------------ > --- POWER ------------ Cooled Ion Engine > --- PROPULSION ------- Light Treads Wheel Armored Wheel > --- UTILITY ---------- Cooling System Large Storage Unit Visual Processing Unit > --- WEAPON ----------- Beamcaster Beamcaster > --- INVENTORY -------- Cooled Ion Engine Improved Deuterium Engine Light Treads Light Treads Wheel Hover Unit Heat Sink Huge Storage Unit Improved Medium Armor Plating Hacking Suite Beam Rifle Light Assault Rifle Light Assault Rifle Rocket Launcher Heavy Rocket Launcher [Rating: 25] Favorites ----------- Power Light Ion Engine Engine Light Ion Engine Propulsion Light Treads Treads Light Treads Leg Aluminum Leg Wheel Wheel Utility Large Storage Unit Device Cooling System Storage Large Storage Unit Processor Visual Processing Unit Weapon Light Assault Rifle Energy Gun Beamcaster Ballistic Gun Light Assault Rifle Launcher Rocket Launcher Build | -11 -10 -10 -9 -9 ------- Run | Yrd Mat Min Mat Min Slots Evolved 2 | . . . 2 . Power . | . . . . . Propulsion 1 | . . . 1 . Utility 1 | . . . 1 . Weapon . | . . . . . Parts Attached 44 | 6 5 2 25 6 Power 8 | 1 2 . 5 . Engine 8 | 1 2 . 5 . Core . | . . . . . Reactor . | . . . . . Propulsion 15 | 2 1 . 11 1 Treads 7 | 1 1 . 5 . Leg 1 | . . . 1 . Wheel 7 | 1 . . 5 1 Hover . | . . . . . Flight . | . . . . . Utility 6 | 1 2 1 2 . Device 3 | . 1 1 1 . Storage 2 | 1 1 . . . Processor 1 | . . . 1 . Hackware . | . . . . . Protection . | . . . . . Artifact . | . . . . . Weapon 15 | 2 . 1 7 5 Energy Gun 3 | . . . 1 2 Energy Cannon . | . . . . . Ballistic Gun 10 | 2 . 1 6 1 Ballistic Cannon . | . . . . . Launcher 2 | . . . . 2 Special Weapon . | . . . . . Impact Weapon . | . . . . . Slashing Weapon . | . . . . . Piercing Weapon . | . . . . . Special Melee Weapon . | . . . . . Unidentified Prototypes 2 | . . . 2 . Parts Lost 10 | . . . 9 1 Power 1 | . . . 1 . Propulsion 5 | . . . 4 1 Utility 1 | . . . 1 . Weapon 3 | . . . 3 . Highest Loss Streak 5 | . . . 5 1 To Critical Strikes 1 | . . . 1 . Average Backups 13 | 3 12 15 14 14 Power 1 | 1 2 2 1 2 Propulsion 4 | 1 4 6 4 4 Utility 2 | . . 1 3 4 Weapon 4 | . 4 5 5 4 Tool/Special . | . . . . . Unused Backups 30 | . 7 3 3 17 Power 8 | . 3 . 1 4 Propulsion 4 | . 1 . . 3 Utility 9 | . 1 . 1 7 Weapon 8 | . 2 2 1 3 Tool/Special 1 | . . 1 . . Average Slot Usage (%) 97 | . 87 100 98 99 Engine 12 | . 14 14 11 11 Treads 13 | . 14 14 14 11 Wheel 17 | . 14 14 18 21 Device 10 | . 1 14 10 11 Storage 12 | . 14 14 11 11 Processor 6 | . . . 10 11 Energy Gun 2 | . . . . 10 Ballistic Gun 21 | . 28 28 22 10 Peak Build Rating 25 | 6 8 11 19 25 Average Rating 13 | 5 6 8 14 22 On Entrance 8 | . 6 8 11 17 Avg Prop Armor Cover (%) 11 | 13 11 11 12 10 Naked Turns . | . . . . . Heaviest Build 40 | 12 32 28 33 40 Greatest Support 22 | 10 10 10 22 22 Greatest Overweight (x) 3 | 1 3 2 3 1 Average Overweight (x) 1 | . 1 2 1 1 Largest Inventory Capacity 15 | 8 15 15 15 15 Average Capacity 14 | 7 13 15 15 15 Most Carried 15 | 6 15 15 15 15 Average Carried 14 | 3 13 14 14 14 Final Capacity 15 | 8 15 15 15 15 Final Carried 15 | 6 15 15 15 14 Class Distribution -------------------- 63% | Mutant 36% | Scavenger-Mutant Dominant Class ---------------- Mutant | -10/Materials Mutant | -10/Mines Scavenger-Mutant | -9/Materials Mutant | -9/Mines Resources | -11 -10 -10 -9 -9 ----------- Run | Yrd Mat Min Mat Min Matter Collected 1465 | 319 143 102 636 265 Remotely . | . . . . . Salvage Created 1771 | 122 221 144 1122 162 Parts 120 | 7 19 9 77 8 Haulers Intercepted 4 | . 1 . 3 . Recyclers Shooed 2 | . . . 2 . Parts Field Recycled . | . . . . . Retrieved Matter . | . . . . . Parts Self-Destructed . | . . . . . Prevented . | . . . . . Parts Restored . | . . . . . Kills | -11 -10 -10 -9 -9 ------- Run | Yrd Mat Min Mat Min Combat Hostiles Destroyed 56 | . 5 3 24 24 Guns 36 | . 5 3 24 4 AOE 20 | . . . . 20 Classes Destroyed 12 | 2 5 . 3 2 Worker 3 | . 1 . 2 . Tunneler 3 | 3 . . . . Hauler 4 | . 1 . 3 . Recycler 2 | 1 . . 1 . Operator 2 | . . . 2 . Watcher 1 | . 1 . . . Swarmer 14 | . 3 3 8 . Grunt 16 | . 2 . 11 3 Duelist 1 | . . . 1 . Sentry 4 | . . . 4 . Demolisher 1 | . . . . 1 Assembled 20 | . . . . 20 Thug 2 | . . 2 . . Best Kill Streak 20 | 2 3 3 5 20 Combat Bots Only 20 | . 3 3 5 20 Max Kills in Single Turn 12 | 1 1 1 2 12 Gunslinging 1 | . . . 1 . Exploded 12 | . . . . 12 Melee . | . . . . . Uniques/NPCs Destroyed . | . . . . . Combat | -11 -10 -10 -9 -9 -------- Run | Yrd Mat Min Mat Min Hostile Shots Fired 219 | . 16 11 168 24 Missed 51 | . 2 . 45 4 Hits 168 | . 14 11 123 20 Melee 5 | . . . 5 . Projectile 163 | . 14 11 118 20 AOE 7 | . . . . 7 Critical Strikes 3 | . . . 3 . Damage Taken 2198 | . 129 82 1499 488 Core 442 | . 9 22 295 116 Absorbed by Shields . | . . . . . Core Remaining (%) 93 | 100 . 87 . . Volleys Fired 196 | 10 16 12 141 17 Largest 2 | 2 2 2 2 2 Hottest 150 | 40 40 40 43 150 Shots Fired 391 | 20 32 24 281 34 Gun 379 | 20 32 24 281 22 Cannon . | . . . . . Launcher 12 | . . . . 12 Special . | . . . . . Kinetic 375 | 20 32 24 281 18 Thermal 4 | . . . . 4 Explosive 12 | . . . . 12 Electromagnetic . | . . . . . Robot Hit Streak 22 | 5 5 5 22 7 Robot Miss Streak 5 | 1 3 3 5 3 Penetration Max 1 | . . . . 1 Secondary Targets 6 | . . 1 5 . Max Gunslinging Chain 1 | . . 1 1 . Shots Hit Robots 250 | 13 18 15 187 17 Core Hits 139 | 5 10 6 70 48 Critical Kills 5 | 1 . 1 2 1 Critical Parts Destroyed . | . . . . . Critical Strikes 6 | 1 . 1 2 2 Burn 1 | . . . . 1 Destroy 5 | 1 . 1 2 1 Melee Attacks . | . . . . . Impact . | . . . . . Slashing . | . . . . . Piercing . | . . . . . Sneak Attacks . | . . . . . Combat Hostiles . | . . . . . Follow-up Attacks . | . . . . . Damage Inflicted 3994 | 162 229 181 1819 1603 Guns 2631 | 162 229 181 1819 240 Cannons . | . . . . . Explosions 1363 | . . . . 1363 Melee . | . . . . . Ramming . | . . . . . Kinetic 2590 | 162 229 181 1819 199 Thermal 41 | . . . . 41 Explosive 1363 | . . . . 1363 Electromagnetic . | . . . . . Impact . | . . . . . Slashing . | . . . . . Piercing . | . . . . . Highest Corruption . | . . . . . Average Corruption . | . . . . . Corruption Purged . | . . . . . Corruption Blocked . | . . . . . Overload Shots . | . . . . . Overflow Damage 34 | . . . . 34 Projectiles . | . . . . . Explosions 34 | . . . . 34 Melee . | . . . . . Knockbacks . | . . . . . Impact . | . . . . . Kinetic . | . . . . . Secondary . | . . . . . Self-Inflicted Damage 28 | . . . . 28 Shots 1 | . . . . 1 Rammed . | . . . . . Targets Rammed . | . . . . . Kicked . | . . . . . Crushed . | . . . . . Highest Temperature 18 | . . . 12 18 Average Temperature 5 | . . . 4 10 Received Heat Transfer 624 | . 30 . 546 48 Siege Activations . | . . . . . Martial Activations . | . . . . . Shielding Activations . | . . . . . Robots Disrupted . | . . . . . Combat Hostiles . | . . . . . Robots Corrupted . | . . . . . Combat Hostiles . | . . . . . Parts Fried . | . . . . . Impact Corruptions . | . . . . . Robots Melted . | . . . . . Combat Hostiles . | . . . . . Parts Melted . | . . . . . Heat Transferred 148 | . . . . 148 Parts Sabotaged . | . . . . . Parts Stolen . | . . . . . Parts Stripped . | . . . . . Power Chain Reactions . | . . . . . Alert | -11 -10 -10 -9 -9 ------- Run | Yrd Mat Min Mat Min Maximum Alert Level 1 | . . . 1 . Low Security (%) 97 | 100 100 100 94 100 Level 1 2 | . . . 5 . Level 2 . | . . . . . Level 3 . | . . . . . Level 4 . | . . . . . Level 5 . | . . . . . High Security . | . . . . . Max Security . | . . . . . Peak Influence 209 | 10 75 70 209 110 Initial 78 | . . 6 . 78 Average 49 | 2 32 7 91 37 Influence Increases 1017 | 20 148 70 647 132 Destroy 0b10 Robot/C 720 | . 100 60 480 80 Destroy 0b10 Robot/NC 75 | 20 15 . 40 . Destroy Leader 140 | . 14 10 106 10 Successful Hack 10 | . 4 . 6 . Destroy Structure 42 | . . . . 42 Lose Combat Pursuer 30 | . 15 . 15 . Influence Decreases 951 | 20 130 88 444 269 Entered New Map 137 | . . 12 . 125 Time Decay 734 | 20 130 76 364 144 Lost Part 80 | . . . 80 . Squads Dispatched 4 | . . . 4 . Investigation 1 | . . . 1 . Extermination . | . . . . . Reinforcement 3 | . . . 3 . Assault . | . . . . . Garrison . | . . . . . Intercept . | . . . . . Searches Triggered . | . . . . . Construction Impeded 1 | . . . 1 . Haulers Reinforced . | . . . . . Active Scanning Responses . | . . . . . Cargo Convoy Interrupts . | . . . . . Stealth | -11 -10 -10 -9 -9 --------- Run | Yrd Mat Min Mat Min Distress Signals 5 | . . . 5 . Communications Jammed . | . . . . . Distress Signals . | . . . . . Times Spotted 79 | . 8 6 48 17 Peak Tracking Total 16 | . 3 3 8 16 Tactical Retreats 2 | . 1 . 1 . Traps | -11 -10 -10 -9 -9 ------- Run | Yrd Mat Min Mat Min Traps Triggered 2 | . 1 . 1 . Indirectly . | . . . . . Trap Hack Attempts . | . . . . . Triggered . | . . . . . Disarmed . | . . . . . Reprogrammed . | . . . . . Reused . | . . . . . Traps Extracted . | . . . . . Installed . | . . . . . Triggered . | . . . . . Machines | -11 -10 -10 -9 -9 ---------- Run | Yrd Mat Min Mat Min Machines Disabled 1 | . . . . 1 Max in Single Turn 1 | . . . . 1 Machines Repaired . | . . . . . Machines Dismantled . | . . . . . Machines Sabotaged . | . . . . . Overloaded Fab Kills . | . . . . . Hacking | -11 -10 -10 -9 -9 --------- Run | Yrd Mat Min Mat Min Machines Accessed 7 | . 4 . 2 1 Terminals 4 | . 3 . 1 . Fabricators . | . . . . . Repair Stations . | . . . . . Recycling Units 2 | . 1 . 1 . Scanalyzers . | . . . . . Garrison Access . | . . . . . Total Hacks 12 | . 8 . 3 1 Successful 7 | . 4 . 2 1 Failed 5 | . 4 . 1 . Catastrophic . | . . . . . Database Lockouts . | . . . . . Manual 9 | . 7 . 2 . Terminals 9 | . 7 . 2 . Fabricators . | . . . . . Repair Stations . | . . . . . Recycling Units 2 | . 1 . 1 . Scanalyzers . | . . . . . Garrison Access . | . . . . . Terminal Hacks 1 | . . . . 1 Open Door 1 | . . . . 1 Fabricator Hacks . | . . . . . Repair Station Hacks . | . . . . . Recycling Unit Hacks 2 | . 1 . 1 . Retrieve Components 2 | . 1 . 1 . Scanalyzer . | . . . . . Garrison Access Hacks . | . . . . . Unauthorized Hacks 4 | . 3 . 1 . Terminals 4 | . 3 . 1 . Botnet 2 | . 2 . . . Operators 2 | . 1 . 1 . Fabricators . | . . . . . Repair Stations . | . . . . . Recycling Units . | . . . . . Scanalyzers . | . . . . . Garrison Access . | . . . . . Data Cores Recovered . | . . . . . Used . | . . . . . Hacking Detections 6 | . 4 . 2 . Full Trace Events . | . . . . . Feedback Events . | . . . . . Feedback Blocked . | . . . . . Robot Schematics Acquired . | . . . . . Robots Built . | . . . . . Authchips . | . . . . . Time . | . . . . . Total Robot Build Rating . | . . . . . Part Schematics Acquired . | . . . . . Parts Built . | . . . . . Authchips . | . . . . . Time . | . . . . . Total Part Build Rating . | . . . . . Part Studies Acquired . | . . . . . Parts Repaired . | . . . . . Time . | . . . . . Parts Recycled . | . . . . . Recycled Matter . | . . . . . Retrieved Matter . | . . . . . Retrieved Components 13 | . 3 . 10 . Parts Scanalyzed . | . . . . . Part Schematics Acquired . | . . . . . Parts Damaged . | . . . . . Bothacking | -11 -10 -10 -9 -9 ------------ Run | Yrd Mat Min Mat Min Used RIF Installer . | . . . . . Robots Hacked . | . . . . . Non-combat . | . . . . . Combat . | . . . . . Robot Hacks Applied . | . . . . . Relay Couplers Released . | . . . . . Fabnet Peak Effective % . | . . . . . Robots Rewired . | . . . . . Allies Hacked . | . . . . . Hacks Repelled . | . . . . . Allies | -11 -10 -10 -9 -9 -------- Run | Yrd Mat Min Mat Min Total Allies 4 | . . 2 . 2 Largest Group 2 | . . 1 . 2 Highest-Rated Group 31 | . . 31 . 24 Highest-Rated Ally 31 | . . 31 . 16 Total Orders . | . . . . . Ally Attacks . | . . . . . Total Damage . | . . . . . Kills . | . . . . . Allies Corrupted . | . . . . . Allies Melted . | . . . . . Intel | -11 -10 -10 -9 -9 ------- Run | Yrd Mat Min Mat Min Active Infowar (turns) 1404 | . . . 930 474 Optics 1404 | . . . 930 474 Robot Analysis Total . | . . . . . Derelict Logs Recovered 2 | . . 1 . 1 Drone Launches . | . . . . . Drone Recoveries . | . . . . . Exploration | -11 -10 -10 -9 -9 ------------- Run | Yrd Mat Min Mat Min Turns Passed 2403 | 107 276 591 955 474 Spaces Moved 1509 | 58 177 480 413 381 Core 2 | 2 . . . . Treads . | . . . . . Legs . | . . . . . Wheels 1507 | 56 177 480 413 381 Hover . | . . . . . Flight . | . . . . . Fastest Speed 50 | 50 95 110 95 100 Average Speed 104 | 90 107 110 103 100 Slowest Speed 125 | 95 125 110 125 100 Overloaded Moves . | . . . . . Propulsion Burnouts . | . . . . . Robots Hopped . | . . . . . Potential Cave-ins . | . . . . . Cave-ins Triggered . | . . . . . Exploration Rate (%) 47 | 3 29 98 33 73 Regions Visited 4 Branch Regions 2 Pre-discovered Areas 1 | . . 1 . . Known Exits Taken . | . . . . . Unknown Exits Taken 4 | 1 1 1 1 . Scrap Searched 2 | . . 1 . 1 Spaces Dug . | . . . . . Terrain Destroyed 58 | . . . . 58 Melee . | . . . . . Projectile 1 | . . . . 1 AOE 57 | . . . . 57 Terrain Rammed . | . . . . . Walls Destroyed . | . . . . . Machines Disabled . | . . . . . Actions | -11 -10 -10 -9 -9 --------- Run | Yrd Mat Min Mat Min Total 2006 | 89 236 526 705 450 Wait 155 | 10 9 19 92 25 Move 1505 | 57 176 479 412 381 Hop . | . . . . . Pick Up 51 | 6 16 6 13 10 Fast Attach 14 | 6 4 . 4 . Attach 11 | . . . 10 1 Detach 1 | . 1 . . . Swap 28 | . 3 2 17 6 Drop 45 | . 11 8 16 10 Fire 196 | 10 16 12 141 17 Melee . | . . . . . Ram . | . . . . . Kick . | . . . . . Crush . | . . . . . Escape Stasis . | . . . . . Rewire . | . . . . . Trap . | . . . . . Miscellaneous . | . . . . . Route ------- -11/Scrapyard -10/Materials -10/Mines (discovered 4 exits: *Mat x2 / [*Exi] / [*Sub]) -9/Materials (discovered 2 exits: *Min x2) -9/Mines (discovered 2 exits: [*Mat x2]) History --------- Turn | Location | Event 46 | -11/Scrapyard | Discovered new exit (range 15) 108 | -11/Scrapyard | Entered Materials 312 | -10/Materials | Build established: Mutant 318 | -10/Materials | Discovered new exit (range 11) 384 | -10/Materials | Entered Mines 438 | -10/Mines | Discovered new exit (range 7) 586 | -10/Mines | Found a hidden stash of uninstalled traps 646 | -10/Mines | Found a Scrap Suit stashed away for nefarious purposes 882 | -10/Mines | Discovered new exit (range 12) 888 | -10/Mines | Discovered new exit (range 13) 903 | -10/Mines | Escorted by a lone wolf Derelict 921 | -10/Mines | Received a Mining Laser from a helpful Derelict 947 | -10/Mines | Deemed a non-threat by the Exiles lab entrance 947 | -10/Mines | Discovered new exit (range 5) 975 | -10/Mines | Entered Materials 975 | -9/Materials | Evolved 2 slots: Propulsion x1, Utility x1 994 | -9/Materials | Discovered new exit (range 15) 1311 | -9/Materials | Lost 5 parts (3n1u1w) 1328 | -9/Materials | Build established: Scavenger-Mutant 1372 | -9/Materials | Core integrity fell below 50% 1900 | -9/Materials | Discovered new exit (range 11) 1930 | -9/Materials | Entered Mines 1931 | -9/Mines | Assembled infested the area 1936 | -9/Mines | Assisted by a Guerilla fighting off Assembled 1937 | -9/Mines | Received a Rocket Launcher from a helpful Derelict 1986 | -9/Mines | Destroyed 20 combat bots 2089 | -9/Mines | Assisted by bots powering up and referring to "LRC-V3" 2161 | -9/Mines | Discovered new exit (range 5) 2170 | -9/Mines | Met a Derelict who couldn't figure out how to use a Trap Extractor 2285 | -9/Mines | Discovered new exit (range 11) 2300 | -9/Mines | Learned Materials stockpile data 2335 | -9/Mines | Core integrity fell below 20% 2404 | -9/Mines | Destroyed by D-53 Grenadier with Mini Grenade Launcher Last Messages --------------- 02336_ Slug penetrates G-47 Trooper. 02339_ G-47 Trooper destroyed. 02344_ Acquired 25 matter. 02348_ Acquired Heat Sink. 02351_ Dropped Heat Sink. 02354_ Acquired Lgt. Nuclear Core. 02355_ Slug penetrates Wall. 02358_ Slug penetrates G-34 Mercenary. 02358_ G-34 Mercenary destroyed. 02361_ Dropped Lgt. Nuclear Core. 02362_ Acquired Imp. Heat Sink. 02363_ Dropped Heat Sink. 02366_ Acquired 10 matter. 02368_ Acquired Heat Sink. 02377_ Dropped Heat Sink. 02394_ K-01 Serf collects debris. 02397_ Slug penetrates Earth. 02399_ K-01 Serf destroyed. 02400_ D-53 Grenadier destroyed. 02401_ The unstable cave ceiling collapses. Map ----- +----------------------------------------------------+ | | | | | | | | | | | | | | | | | | | ?????????????????????????????????????????????????? | | ?????????????????????????????????????????????????? | | ?????????????????????????????????????????????????? | | ?????????????????????????????????????????????????? | | ?????????????????????????????????????????????????? | | ?????????????????????????????????????????????????? | | ? ???????????????????????????????????????????????? | | ????????????########???????????????????????????? | | ????????????# #???????????????????????????? | | #???????????? """ ????????????????????????????? | | #?????##???? """ #????????#??????????????????? | | #??### ????? """ ?###??## #??????????????????? | | ### ????? ?## ## # #??????????????????? | | ????# #?# ==#??????????????????? | | ##### ### # #??????????????????? | | d #??????????????????? | | # @ #???????????????????? | | # ### #??????????????????? | | ??# #?# #??????????????????? | | ##?????# #?# # ##??????????????????? | | #???????# #?# ## ##???????????????????? | | ?# ######### ### ########????????????????????? | | ??# ! ## #???????????????????????????? | | ??## ########### ##??????????????????????????? | | ???#%##?????????# ##???????????####??????????? | | ???#[#??????????## ##????????### ##?????????? | | ???# #???????????# #???????## ##????????? | | ???#!#???????????# < #??????## ####???##? | | ???#*############# #???#### #### ## | | ???#=*%!%= ## ? ???## ## # | | ???####### ## #??## ????# # | | ?????????#%! #???## #???## # | | ?????????#### #????# #??## ### """ # | | ????????????# ###### #?## ##?## """ # | | ????????????# #?# ##???## """ ## | | ????# ### ###### #?# ##?????## #? | | ????# #????# #?# #???????## ## | | # ######????# #### #????????### # | | #??????????????????# ##?????????#### | | ???????????????????# #????????????## | | ???????????????????# ###### #?????####???## # | +----------------------------------------------------+ Best States ------------- Heat Dissipation 50 Energy Generation 14 Energy Capacity 280 Matter Stores 300 Matter Capacity 300 Sight Range 18 Terrain Scan Density 10 Evasion (%) 44 Item Schematics ----------------- None Robot Schematics ------------------ None Fabricated ------------ Nothing Repaired ---------- Nothing Studied --------- None Alien Tech Used ----------------- None Achievements -------------- None Challenges ------------ None Game ------ Seed CompanionEnergyCore Manual? 0 Play Time 00:19:40 Cumulative 655.0 hours Start 2026.09.25 @ 04:02:39 End 2026.09.25 @ 04:19:41 Sessions 1 Manual Loads 0 Difficulty Rogue Special Mode None Game No. 278 Rogue 278 Adventurer 0 Explorer 0 Win Type - Total 13 Types 9/0/3/0/0/0/1/0/0/0 Lore% 82 Gallery% 75 Achievement% 56 Wizard Run 0 Options --------- Layout 0 ASCII 0 Keyboard 1 Movement Vi Keybinds 0 Fullscreen 2 Font 18/SmallcapsGlow Map View 76x50 Zoom Use 0% Tactical HUD 1 Map Filters NONE Filters NONE Steam 1 RUN: e63d4d6f-e194-47df-81a0-3a44d05d7de8